Cogmind - Beta 13 @@@ ROGUE MODE // 2024.04.08 @ 16:45:13 Player: Vorpal Result: Self-destructed Performance ------------- Evolutions (2) 1000 Regions Visited (5) 1000 Robots Destroyed (24) 120 Value Destroyed (534) 534 Prototype IDs (2) 40 Alien Tech Used (0) 0 Bonus (370) 370 TOTAL SCORE: 3064 Bonus ------- Follower Combat Kills 70 Aligned with FarCom 300 Cogmind --------- Core Integrity 446/550 Matter 300/300 Energy 0/100 System Corruption 14% Temperature Cool (0) Movement Core (200) Ox3 Location -8/Materials Parts ------- > --- POWER (2) -------- (None) > --- PROPULSION (2) --- (None) > --- UTILITY (4) ------ ECM Suite Core Shielding Shield Generator Skeleton Box > --- WEAPON (3) ------- Grenade Launcher Enhanced Flamer > --- INVENTORY (5) ---- Improved Heat Sink Splice Drone Bay Latent Energy Streamer Peak State ------------ > --- POWER ------------ Light Ion Engine Deuterium Engine > --- PROPULSION ------- Aluminum Leg Aluminum Leg > --- UTILITY ---------- ECM Suite Shield Generator Shield Generator Skeleton Box > --- WEAPON ----------- Latent Energy Streamer Enhanced Flamer > --- INVENTORY -------- Improved Heat Sink Splice Drone Bay Grenade Launcher [Rating: 31] Favorites ----------- Power Light Ion Engine Engine Light Ion Engine Propulsion Aluminum Leg Leg Aluminum Leg Utility Signal Interpreter Device Skeleton Box Processor Signal Interpreter Protection Core Shielding Weapon Assault Rifle Energy Cannon Latent Energy Streamer Ballistic Gun Assault Rifle Launcher Grenade Launcher Special Weapon Enhanced Flamer Build | -11 -10 -10 -10 -9 -8 ------- Run | Yrd Mat Min Exi Min Mat Slots Evolved 4 | . . . . . 4 Power 1 | . . . . . 1 Propulsion . | . . . . . . Utility 2 | . . . . . 2 Weapon 1 | . . . . . 1 Parts Attached 27 | 5 5 . 2 6 9 Power 3 | 1 1 . . . 1 Engine 3 | 1 1 . . . 1 Core . | . . . . . . Reactor . | . . . . . . Propulsion 6 | 2 1 . . 1 2 Treads . | . . . . . . Leg 6 | 2 1 . . 1 2 Wheel . | . . . . . . Hover . | . . . . . . Flight . | . . . . . . Utility 7 | . 2 . 1 1 3 Device 4 | . . . 1 1 2 Storage . | . . . . . . Processor 2 | . 2 . . . . Hackware . | . . . . . . Protection 1 | . . . . . 1 Artifact . | . . . . . . Weapon 11 | 2 1 . 1 4 3 Energy Gun . | . . . . . . Energy Cannon 3 | . . . 1 1 1 Ballistic Gun 3 | 2 1 . . . . Ballistic Cannon . | . . . . . . Launcher 3 | . . . . 2 1 Special Weapon 2 | . . . . 1 1 Impact Weapon . | . . . . . . Slashing Weapon . | . . . . . . Piercing Weapon . | . . . . . . Special Melee Weapon . | . . . . . . Unidentified Prototypes 2 | . . . 2 . . Parts Lost 7 | . 1 . . 2 4 Power 1 | . . . . . 1 Propulsion 2 | . . . . . 2 Utility 1 | . . . . . 1 Weapon 3 | . 1 . . 2 . Highest Loss Streak 2 | . 1 . . 2 2 To Critical Strikes . | . . . . . . Average Slot Usage (%) 87 | . 91 85 89 87 78 Engine 13 | . 14 14 14 14 13 Leg 26 | . 27 28 28 28 17 Device 11 | . . . 3 18 30 Processor 13 | . 21 28 24 3 . Energy Cannon 5 | . . . 4 12 5 Ballistic Gun 12 | . 26 14 14 3 . Special Weapon 2 | . . . . 2 8 Naked Turns . | . . . . . . Heaviest Build 32 | 6 7 5 17 17 32 Greatest Support 20 | 20 20 20 20 20 20 Greatest Overweight (x) 6 | . . . . . 6 Average Overweight (x) . | . . . . . . Largest Inventory Capacity 5 | 5 5 5 5 5 5 Average Capacity 5 | 5 5 5 5 5 5 Most Carried 5 | 4 5 5 5 5 5 Average Carried 3 | 1 3 4 4 4 3 Final Capacity 5 | 5 5 5 5 5 5 Final Carried 5 | 2 4 5 4 4 3 Class Distribution -------------------- 100% | Mutant Dominant Class ---------------- Mutant | -10/Materials Mutant | -10/Mines Mutant | -10/Exiles Mutant | -9/Mines Mutant | -8/Materials Resources | -11 -10 -10 -10 -9 -8 ----------- Run | Yrd Mat Min Exi Min Mat Matter Collected 816 | 286 250 . . 154 126 Remotely . | . . . . . . Salvage Created 782 | 74 291 . . 80 337 Parts 53 | 8 26 . . 2 17 Haulers Intercepted 1 | . . . . . 1 Recyclers Shooed . | . . . . . . Parts Field Recycled . | . . . . . . Retrieved Matter . | . . . . . . Parts Self-Destructed . | . . . . . . Prevented . | . . . . . . Kills | -11 -10 -10 -10 -9 -8 ------- Run | Yrd Mat Min Exi Min Mat Combat Hostiles Destroyed 13 | 1 9 . . 2 1 Guns 10 | 1 9 . . . . AOE 3 | . . . . 2 1 Classes Destroyed 9 | 2 2 . . . 5 Worker 1 | . . . . . 1 Tunneler 3 | 2 1 . . . . Hauler 1 | . . . . . 1 Recycler 1 | . . . . . 1 Mechanic 1 | . . . . . 1 Watcher 4 | . 3 . . . 1 Swarmer 6 | . 6 . . . . Grunt 6 | 1 3 . . 2 . Heavy 1 | . . . . . 1 Best Kill Streak 4 | 3 4 . . 2 3 Combat Bots Only 3 | 1 3 . . 2 1 Max Kills in Single Turn 3 | 1 1 . . 2 3 Gunslinging . | . . . . . . Exploded 2 | . . . . 2 1 Melee . | . . . . . . Uniques/NPCs Destroyed . | . . . . . . Combat | -11 -10 -10 -10 -9 -8 -------- Run | Yrd Mat Min Exi Min Mat Hostile Shots Fired 123 | 12 59 . . 1 51 Missed 31 | 3 17 . . . 11 Damage Taken 1408 | 98 411 . . 205 694 Core 237 | 22 111 . . . 104 Absorbed by Shields 147 | . . . . . 147 Redirected to Shielding 21 | . . . . . 21 Core Remaining (%) 68 | 91 . . . 46 . Volleys Fired 69 | 9 52 . . 1 7 Largest 2 | 2 2 . . 2 2 Hottest 140 | 40 40 . . 60 140 Shots Fired 125 | 18 97 . . 2 8 Gun 115 | 18 97 . . . . Cannon 5 | . . . . . 5 Launcher 3 | . . . . 2 1 Special 2 | . . . . . 2 Kinetic 115 | 18 97 . . . . Thermal 2 | . . . . . 2 Explosive 3 | . . . . 2 1 Electromagnetic 5 | . . . . . 5 Robot Hit Streak 11 | 4 9 . . 11 2 Robot Miss Streak 4 | 2 4 . . . 1 Penetration Max . | . . . . . . Secondary Targets 1 | . 1 . . . . Max Gunslinging Chain 1 | . 1 . . . . Shots Hit Robots 63 | 12 47 . . 2 2 Core Hits 35 | 4 19 . . 3 9 Critical Kills . | . . . . . . Critical Parts Destroyed . | . . . . . . Critical Strikes . | . . . . . . Melee Attacks . | . . . . . . Impact . | . . . . . . Slashing . | . . . . . . Piercing . | . . . . . . Sneak Attacks . | . . . . . . Combat Hostiles . | . . . . . . Follow-up Attacks . | . . . . . . Damage Inflicted 1743 | 145 584 . . 118 896 Guns 729 | 145 584 . . . . Cannons 12 | . . . . . 12 Explosions 1002 | . . . . 118 884 Melee . | . . . . . . Ramming . | . . . . . . Kinetic 729 | 145 584 . . . . Thermal . | . . . . . . Explosive 146 | . . . . 118 28 Electromagnetic 868 | . . . . . 868 Impact . | . . . . . . Slashing . | . . . . . . Piercing . | . . . . . . Highest Corruption 14 | . . . . 9 14 Average Corruption 8 | . . . . 9 7 Corruption Purged . | . . . . . . Corruption Blocked . | . . . . . . Effects 19 | . . . . 12 7 Message Errors 5 | . . . . 3 2 Matter Fused 5 | . . . . 2 3 Heat Flow Errors 1 | . . . . 1 . Energy Discharges 2 | . . . . 2 . Parts Rejected 1 | . . . . . 1 Data Loss (minor) 2 | . . . . 2 . Data Loss (major) 2 | . . . . 2 . Alerts 1 | . . . . . 1 Overload Shots . | . . . . . . Overflow Damage 29 | . . . . . 29 Projectiles . | . . . . . . Explosions 29 | . . . . . 29 Melee . | . . . . . . Knockbacks . | . . . . . . Impact . | . . . . . . Kinetic . | . . . . . . Secondary . | . . . . . . Self-Inflicted Damage 93 | . . . . . 93 Shots 1 | . . . . . 1 Rammed . | . . . . . . Targets Rammed . | . . . . . . Kicked . | . . . . . . Crushed . | . . . . . . Highest Temperature 164 | 6 2 . . 164 78 Average Temperature 32 | 6 2 . . 91 24 Received Heat Transfer 436 | 54 96 . . 9 277 Siege Activations . | . . . . . . Robots Corrupted . | . . . . . . Combat Hostiles . | . . . . . . Parts Fried 3 | . . . . . 3 Impact Corruptions . | . . . . . . Robots Melted . | . . . . . . Combat Hostiles . | . . . . . . Parts Melted . | . . . . . . Heat Transferred . | . . . . . . Parts Sabotaged . | . . . . . . Parts Stolen . | . . . . . . Parts Stripped . | . . . . . . Power Chain Reactions . | . . . . . . Latent Energy Used 925 | . . . . . 925 LE Corruption 14 | . . . . . 14 Alert | -11 -10 -10 -10 -9 -8 ------- Run | Yrd Mat Min Exi Min Mat Peak Influence 185 | 30 185 66 . 89 156 Initial 56 | . 19 56 . . . Average 53 | 6 98 63 . 7 53 Maximum Alert Level . | . . . . . . Low Security (%) 100 | 100 100 100 . 100 100 Level 1 . | . . . . . . Level 2 . | . . . . . . Level 3 . | . . . . . . Level 4 . | . . . . . . Level 5 . | . . . . . . High Security . | . . . . . . Max Security . | . . . . . . Squads Dispatched 4 | . 2 . . . 2 Investigation 1 | . 1 . . . . Extermination . | . . . . . . Reinforcement 3 | . 1 . . . 2 Assault . | . . . . . . Garrison . | . . . . . . Intercept . | . . . . . . Searches Triggered . | . . . . . . Construction Impeded 1 | . . . . . 1 Haulers Reinforced . | . . . . . . Active Scanning Responses . | . . . . . . Cargo Convoy Interrupts . | . . . . . . Stealth | -11 -10 -10 -10 -9 -8 --------- Run | Yrd Mat Min Exi Min Mat Distress Signals 1 | . 1 . . . . Communications Jammed . | . . . . . . Distress Signals . | . . . . . . Times Spotted 33 | 1 13 . . 2 17 Peak Tracking Total 4 | 1 4 . . 2 3 Tactical Retreats 5 | . . . . . 5 Traps | -11 -10 -10 -10 -9 -8 ------- Run | Yrd Mat Min Exi Min Mat Traps Triggered 2 | . 2 . . . . Indirectly . | . . . . . . Trap Hack Attempts . | . . . . . . Triggered . | . . . . . . Disarmed . | . . . . . . Reprogrammed . | . . . . . . Reused . | . . . . . . Traps Extracted . | . . . . . . Installed . | . . . . . . Triggered 1 | . . 1 . . . Machines | -11 -10 -10 -10 -9 -8 ---------- Run | Yrd Mat Min Exi Min Mat Machines Disabled 8 | . 1 . . 2 5 Max in Single Turn 2 | . 1 . . 2 2 Machines Repaired . | . . . . . . Machines Dismantled . | . . . . . . Machines Sabotaged . | . . . . . . Overloaded Fab Kills . | . . . . . . Hacking | -11 -10 -10 -10 -9 -8 --------- Run | Yrd Mat Min Exi Min Mat Machines Accessed 5 | . 4 . 1 . . Terminals 3 | . 3 . . . . Fabricators . | . . . . . . Repair Stations . | . . . . . . Recycling Units 1 | . 1 . . . . Scanalyzers . | . . . . . . Garrison Access . | . . . . . . Total Hacks 9 | . 6 . 3 . . Successful 4 | . 1 . 3 . . Failed 5 | . 5 . . . . Catastrophic 1 | . 1 . . . . Database Lockouts . | . . . . . . Manual 1 | . . . 1 . . Terminals 5 | . 5 . . . . Fabricators . | . . . . . . Repair Stations . | . . . . . . Recycling Units 1 | . 1 . . . . Scanalyzers . | . . . . . . Garrison Access . | . . . . . . Terminal Hacks 4 | . 1 . 3 . . Record 3 | . . . 3 . . Alert Level 1 | . 1 . . . . Fabricator Hacks . | . . . . . . Repair Station Hacks . | . . . . . . Recycling Unit Hacks . | . . . . . . Scanalyzer . | . . . . . . Garrison Access Hacks . | . . . . . . Unauthorized Hacks . | . . . . . . Terminals . | . . . . . . Fabricators . | . . . . . . Repair Stations . | . . . . . . Recycling Units . | . . . . . . Scanalyzers . | . . . . . . Garrison Access . | . . . . . . Data Cores Recovered . | . . . . . . Used . | . . . . . . Hacking Detections 3 | . 3 . . . . Full Trace Events 1 | . 1 . . . . Feedback Events . | . . . . . . Feedback Blocked . | . . . . . . Robot Schematics Acquired . | . . . . . . Robots Built . | . . . . . . Authchips . | . . . . . . Time . | . . . . . . Total Robot Build Rating . | . . . . . . Part Schematics Acquired . | . . . . . . Parts Built . | . . . . . . Authchips . | . . . . . . Time . | . . . . . . Total Part Build Rating . | . . . . . . Parts Repaired . | . . . . . . Time . | . . . . . . Parts Recycled . | . . . . . . Recycled Matter . | . . . . . . Retrieved Matter . | . . . . . . Retrieved Components . | . . . . . . Parts Scanalyzed . | . . . . . . Part Schematics Acquired . | . . . . . . Parts Damaged . | . . . . . . Bothacking | -11 -10 -10 -10 -9 -8 ------------ Run | Yrd Mat Min Exi Min Mat Used RIF Installer . | . . . . . . Robots Hacked . | . . . . . . Non-combat . | . . . . . . Combat . | . . . . . . Robot Hacks Applied . | . . . . . . Relay Couplers Released . | . . . . . . Fabnet Peak Effective % . | . . . . . . Robots Rewired . | . . . . . . Allies Hacked . | . . . . . . Hacks Repelled . | . . . . . . Allies | -11 -10 -10 -10 -9 -8 -------- Run | Yrd Mat Min Exi Min Mat Total Allies 5 | . . 2 . 3 . Largest Group 3 | . . 2 2 3 3 Highest-Rated Group 47 | . . 47 47 40 40 Highest-Rated Ally 31 | . . 31 31 16 16 Total Orders . | . . . . . . Ally Attacks 32 | . . . . . 32 Total Damage 287 | . . . . . 287 Kills 3 | . . . . . 3 Allies Corrupted . | . . . . . . Allies Melted . | . . . . . . Intel | -11 -10 -10 -10 -9 -8 ------- Run | Yrd Mat Min Exi Min Mat Robot Analysis Total . | . . . . . . Derelict Logs Recovered 2 | . . . . 2 . Drone Launches . | . . . . . . Drone Recoveries . | . . . . . . Exploration | -11 -10 -10 -10 -9 -8 ------------- Run | Yrd Mat Min Exi Min Mat Turns Passed 2842 | 94 797 252 458 741 500 Spaces Moved 2030 | 69 528 208 378 586 261 Core 43 | 38 . . . . 5 Treads . | . . . . . . Legs 1987 | 31 528 208 378 586 256 Wheels . | . . . . . . Hover . | . . . . . . Flight . | . . . . . . Fastest Speed 50 | 50 120 120 120 120 120 Average Speed 123 | 81 120 120 120 120 156 Slowest Speed 350 | 120 120 120 120 120 350 Overloaded Moves . | . . . . . . Propulsion Burnouts . | . . . . . . Robots Hopped . | . . . . . . Cave-ins Triggered 1 | . . . . 1 . Exploration Rate (%) 49 | 7 81 32 55 100 23 Regions Visited 5 Branch Regions 3 Pre-discovered Areas 1 | . . 1 . . . Known Exits Taken 3 | . 1 1 1 . . Unknown Exits Taken 2 | 1 . . . 1 . Scrap Searched 4 | . . . . 4 . Spaces Dug . | . . . . . . Terrain Destroyed 89 | . . . . 15 74 Melee . | . . . . . . Projectile . | . . . . . . AOE 89 | . . . . 15 74 Terrain Rammed . | . . . . . . Walls Destroyed . | . . . . . . Machines Disabled . | . . . . . . Actions | -11 -10 -10 -10 -9 -8 --------- Run | Yrd Mat Min Exi Min Mat Total 2243 | 90 598 210 382 624 339 Wait 79 | 1 1 2 . 20 55 Move 2025 | 68 527 207 377 585 261 Hop . | . . . . . . Pick Up 29 | 7 8 1 2 6 5 Fast Attach 2 | . 1 . . . 1 Attach 16 | 5 2 . 1 4 4 Detach 1 | . . . . 1 . Swap 9 | . 2 . 1 2 4 Drop 13 | . 5 . 1 5 2 Fire 69 | 9 52 . . 1 7 Melee . | . . . . . . Ram . | . . . . . . Kick . | . . . . . . Crush . | . . . . . . Escape Stasis . | . . . . . . Rewire . | . . . . . . Trap . | . . . . . . Miscellaneous . | . . . . . . Route ------- -11/Scrapyard -10/Materials (discovered 4 exits: *Mat x3 / *Min) -10/Mines -10/Exiles -9/Mines (discovered 2 exits: [*Mat x2]) -8/Materials (discovered 1 exit: [*Fac]) History --------- Turn | Location | Event 2 | -11/Scrapyard | Met Revision 17 51 | -11/Scrapyard | Discovered new exit (range 8) 95 | -11/Scrapyard | Entered Materials 264 | -10/Materials | Discovered new exit (range 18) 308 | -10/Materials | Build established: Mutant 546 | -10/Materials | Discovered new exit (range 18) 654 | -10/Materials | Discovered new exit (range 18) 782 | -10/Materials | Identified exit to Materials 815 | -10/Materials | Core integrity fell below 50% 840 | -10/Materials | Discovered new exit (range 18) 888 | -10/Materials | Identified exit to Mines 892 | -10/Materials | Entered Mines 915 | -10/Mines | Found a damaged Exp. Sensor Array with a note attached 918 | -10/Mines | Found Prototype Device 922 | -10/Mines | Deemed a non-threat by the Exiles lab entrance 922 | -10/Mines | Discovered new exit (range 5) 926 | -10/Mines | Identified exit to Exiles 1078 | -10/Mines | Learned location of Storage (-7) 1144 | -10/Mines | Entered Exiles 1144 | -10/Exiles | Accompanied by 2 allies 1165 | -10/Exiles | Discovered new exit (range 15) 1174 | -10/Exiles | Led the pair of lost Derelicts to a safe place 1180 | -10/Exiles | Identified exit to Mines 1204 | -10/Exiles | Met 8R-AWN 1230 | -10/Exiles | Met EX-HEX 1290 | -10/Exiles | Met EX-DEC 1328 | -10/Exiles | Met EX-BIN 1352 | -10/Exiles | Aligned with FarCom system 1353 | -10/Exiles | Given EX-Vault access code 1458 | -10/Exiles | Opened EX-Vault 1468 | -10/Exiles | Found Prototype Energy Cannon 1469 | -10/Exiles | Identified Latent Energy Streamer 1475 | -10/Exiles | Found Prototype Device 1476 | -10/Exiles | Identified Skeleton Box 1503 | -10/Exiles | Warned to stay clear of 0b10 Research branches 1602 | -10/Exiles | Stole two prototypes: Latent Energy Streamer, Skeleton Box 1602 | -10/Exiles | Entered Mines 1653 | -9/Mines | Remotely autohacked Sealed Doors 1654 | -9/Mines | Found the Drone Emporium 1660 | -9/Mines | Found Prototype Device 1693 | -9/Mines | Learned Materials security intel 1721 | -9/Mines | Learned location of 1 exit from Lower Caves 1815 | -9/Mines | A weapon hastily lodged in a ceiling crevice suddenly fell to the ground 2016 | -9/Mines | Crushed by falling debris 2087 | -9/Mines | Discovered new exit (range 16) 2177 | -9/Mines | Assisted by bots powering up and referring to "LRC-V3" 2282 | -9/Mines | Discovered new exit (range 8) 2343 | -9/Mines | Entered Materials 2343 | -8/Materials | Accompanied by 3 allies 2343 | -8/Materials | Evolved 4 slots: Power x1, Utility x2, Weapon x1 2692 | -8/Materials | Discovered new exit (range 11) 2731 | -8/Materials | Lost 3 allies 2735 | -8/Materials | System corruption reached 10% 2843 | -8/Materials | Self-destructed Last Messages --------------- ALERT: Construction progress impeded, dispatching reinforcements to local area. U-05 Engineer lays Concrete. U-05 Engineer builds a Wall. U-05 Engineer lays Concrete. System corrupted: Matter fused (-6). U-05 Engineer lays Concrete. Critical hit (Burn: +26). U-05 Engineer lays Concrete. Aluminum Leg destroyed. U-05 Engineer lays Concrete. U-05 Engineer builds a Wall. U-05 Engineer lays Concrete. Acquired 21 matter. U-05 Engineer lays Concrete. U-05 Engineer builds a Wall. Aluminum Leg destroyed. U-05 Engineer lays Concrete. U-05 Engineer builds a Wall. System corrupted: Deuterium Engine rejected. Map ----- +----------------------------------------------------+ | ?????????????????????????????????????????????????? | | ??????????????????????????????????????????#??????? | | ????????????????????????????????????????## #" ???? | | ?########??????????????????????????????? ?? | | ?# ] #??????????????????????????????? ?? | | ?# #??????????????????????????????? !%"T" | | ?#!![ #???????????????????????????????